{"text_format":"3","workbook":"xlsx","n_sheets":8,"sheets":["Job Info","Cabinets","Panels","Corner Cabs","Rangehoods","TC standards AND Required info","Codes","Versions"],"not_rendered":{"images":13,"defined_names":2},"read":"whole","date_system":"1900"}

{"sheet":"Job Info","index":0,"n_rows":45,"n_cols":7,"rows_kept":45,"merged":[[0,0,3,9],[4,6,4,9],[5,1,5,5],[5,6,20,9],[6,1,6,5],[7,1,7,5],[8,1,8,5],[9,1,9,5],[10,1,10,5],[12,3,12,5],[13,3,13,5],[21,6,21,9],[22,3,22,5],[22,6,45,9],[23,3,23,5],[24,3,24,5],[25,3,25,5],[26,3,26,5],[27,3,27,5],[30,3,30,5],[31,3,31,5],[32,3,32,5],[35,2,39,2],[40,1,40,5],[42,3,42,5],[43,3,43,5],[44,3,44,5]]}
[]
[]
[]
[]
["    Job Details                              TC:",{"$nulls":5},"Special Instructions for Office"]
["                           Client Name","jag "]
["                                     Phone"]
["                                      Email"]
["                              Job Name","pranhan / bulleen "]
["                       Date Ordered"]
["                      Date Required","asap "]
["     Carcass"]
["   Carcass Material",null,"Other:"]
["   Carcass Edge Colour",null,"Other:"]
["   Wrap Cabinets Individually"]
["    Other Materials","Supplier","Colour/Name","Finish","Thickness","Client Supply"]
["   Material 1 (C1)","polytec ","polar white ","matt",16]
["   Material 2 (C2)"]
["   Material 3 (C3)"]
["   Material 4 (C4)"]
["   Material 5 (C5)"]
["    Cabinet Requirements & Drilling -- Note: TC Std Construction (Back inside ends, Back over Top & Base)",{"$nulls":5},"Special Instructions for Design"]
["   Carcass Construction type: ",null,"-----------------------------------------------------------------Other:"]
["                              Hinge Type:",null,"---------------------------------------------------------Other:","hettich "]
["                     Drill Hinge Cups:"]
["                         Std hinge Pos:",null,"------------------------------------------------------------Other:"]
["                        Drawer Type 1:",null,"--------------------------------------------------------Other:"]
["                        Drawer Type 2:",null,"----------------------------------Other:"]
["                Drill Drawer Fronts:"]
["       Drill for Adjustable Legs:"]
["                    Door Gaps: Base:",null,"--------------------------------------------Other:"]
["         Door Gaps: Upper/Tall:",null,"----------------------------------------------Other:"]
["                       Base Fingerpull:",null,"----------------------------------------Other:"]
[]
["    Hardware Supply (tick as required)   TRADE CABINETS ARE NOT CURRENTLY SUPPLYING HARDWARE"]
["   Supply All hardware",null,"TRADE CABINETS ARE NOT CURRENTLY SUPPLYING HARDWARE"]
["   Supply Hinges"]
["   Supply Drawers"]
["   Supply Adj Legs"]
["   Supply Bin"]
["Other:"]
["    Packing/Release Info"]
["   Delivery Required",null,"Adress: "]
["   Wrap & Strap Pallet"]
["   Pallet Size (select)","   2400 x 1200"]

{"sheet":"Cabinets","index":1,"n_rows":47,"n_cols":26,"rows_kept":47,"merged":[[0,0,0,1],[0,7,0,13],[0,14,0,18],[1,0,1,24],[2,0,3,0],[2,1,3,1],[2,2,3,2],[2,3,3,3],[2,4,2,6],[2,7,2,8],[2,10,3,10],[2,11,3,11],[2,12,2,13],[2,14,2,18],[2,19,2,23],[2,24,3,24],[2,25,3,25],[29,0,29,25],[30,0,31,0],[30,1,31,1],[30,2,31,2],[30,3,31,3],[30,4,30,6],[30,7,31,7],[30,8,31,8],[30,9,30,13],[30,14,30,17],[30,18,31,18],[30,19,30,23],[30,24,31,24],[30,25,31,25]]}
["  Cabinets",null,"# cabinets:",{"$f":"SUM(D5:D47)","v":7},{"$nulls":3},"Carcass is 16mm MR White Mel (texture finish) unless specified otherwise   ** All dimensions in mm **"]
["   Send order to sales@tradecabinets.com.au                                                                                 Version 2.02 01/09/2020"]
["Cab #","Room/Group","Cabinet","Qty","Cab. Dimensions Depth = CARCASS",{"$nulls":4},"Shelves","Solid Top? y/n","Face Material                                    ","Door Size                                ",null,"Hinge Position (3, 4, 5 from top)",{"$nulls":4},"GAPS (top, bottom, left, right, vertical, horizontal)",{"$nulls":4},"    Notes 1","    Notes 2"]
[{"$nulls":4},"H","W","D","D End 1","D End 2","Qty",null,null,"H","W","1 Top","2 Bot.",3,4,5,"T","B","L","R","Vt/Hz"]
[1,null,"Base Open",1,768,470,580,null,null,1,"n","Carcass Only"]
[2,null,"Upper 2 Door",2,600,627,330,null,null,1,{"$f":"VLOOKUP(C6, Codes!$D$4:$E$59, 2, FALSE)","v":"Y"},"C1",600,311,{"$nulls":10},"locks on doors "]
[3,null,"Upper 2 Door",2,600,734,330,null,null,1,{"$f":"VLOOKUP(C7, Codes!$D$4:$E$59, 2, FALSE)","v":"Y"},"C1",600,364,{"$nulls":10},"locks on doors "]
[4,null,"Tall 2 Door",1,2000,902,580,null,null,4,{"$f":"VLOOKUP(C8, Codes!$D$4:$E$59, 2, FALSE)","v":"Y"},"C1",2000,448,{"$nulls":10},"one of the adj sh to be fixed as need locks on doors  equal space ","locks on doors "]
[5,null,"Tall 1 Door RH",1,2000,451,580,null,null,4,{"$f":"VLOOKUP(C9, Codes!$D$4:$E$59, 2, FALSE)","v":"Y"},"C1",2000,448,{"$nulls":10},"locks on door same hight as the one above no fixed sh needed "]
[6,null,"Select Cabinet","--",{"$nulls":5},"--",{"$f":"VLOOKUP(C10, Codes!$D$4:$E$59, 2, FALSE)","v":"-"},"--"]
[7,null,"Select Cabinet","--",{"$nulls":5},"--",{"$f":"VLOOKUP(C11, Codes!$D$4:$E$59, 2, FALSE)","v":"-"},"--"]
[8,null,"Select Cabinet","--",{"$nulls":5},"--",{"$f":"VLOOKUP(C12, Codes!$D$4:$E$59, 2, FALSE)","v":"-"},"--"]
[9,null,"Select Cabinet","--",{"$nulls":5},"--",{"$f":"VLOOKUP(C13, Codes!$D$4:$E$59, 2, FALSE)","v":"-"},"--"]
[10,null,"Select Cabinet","--",{"$nulls":5},"--",{"$f":"VLOOKUP(C14, Codes!$D$4:$E$59, 2, FALSE)","v":"-"},"--"]
[11,null,"Select Cabinet","--",{"$nulls":5},"--",{"$f":"VLOOKUP(C15, Codes!$D$4:$E$59, 2, FALSE)","v":"-"},"--"]
[12,null,"Select Cabinet","--",{"$nulls":5},"--",{"$f":"VLOOKUP(C16, Codes!$D$4:$E$59, 2, FALSE)","v":"-"},"--"]
[13,null,"Select Cabinet","--",{"$nulls":5},"--",{"$f":"VLOOKUP(C17, Codes!$D$4:$E$59, 2, FALSE)","v":"-"},"--"]
[14,null,"Select Cabinet","--",{"$nulls":5},"--",{"$f":"VLOOKUP(C18, Codes!$D$4:$E$59, 2, FALSE)","v":"-"},"--"]
[15,null,"Select Cabinet","--",{"$nulls":5},"--",{"$f":"VLOOKUP(C19, Codes!$D$4:$E$59, 2, FALSE)","v":"-"},"--"]
[16,null,"Select Cabinet","--",{"$nulls":5},"--",{"$f":"VLOOKUP(C20, Codes!$D$4:$E$59, 2, FALSE)","v":"-"},"--"]
[17,null,"Select Cabinet","--",{"$nulls":5},"--",{"$f":"VLOOKUP(C21, Codes!$D$4:$E$59, 2, FALSE)","v":"-"},"--"]
[18,null,"Select Cabinet","--",{"$nulls":5},"--",{"$f":"VLOOKUP(C22, Codes!$D$4:$E$59, 2, FALSE)","v":"-"},"--"]
[19,null,"Select Cabinet","--",{"$nulls":5},"--",{"$f":"VLOOKUP(C23, Codes!$D$4:$E$59, 2, FALSE)","v":"-"},"--"]
[20,null,"Select Cabinet","--",{"$nulls":5},"--",{"$f":"VLOOKUP(C24, Codes!$D$4:$E$59, 2, FALSE)","v":"-"},"--"]
[21,null,"Select Cabinet","--",{"$nulls":5},"--",{"$f":"VLOOKUP(C25, Codes!$D$4:$E$59, 2, FALSE)","v":"-"},"--"]
[22,null,"Select Cabinet","--",{"$nulls":5},"--",{"$f":"VLOOKUP(C26, Codes!$D$4:$E$59, 2, FALSE)","v":"-"},"--"]
[23,null,"Select Cabinet","--",{"$nulls":5},"--",{"$f":"VLOOKUP(C27, Codes!$D$4:$E$59, 2, FALSE)","v":"-"},"--"]
[24,null,"Select Cabinet","--",{"$nulls":5},"--",{"$f":"VLOOKUP(C28, Codes!$D$4:$E$59, 2, FALSE)","v":"-"},"--"]
[25,null,"Select Cabinet","--",{"$nulls":5},"--",{"$f":"VLOOKUP(C29, Codes!$D$4:$E$59, 2, FALSE)","v":"-"},"--"]
["                                    DRAWERS"]
["Cab #","Room/Group","Cabinet","Qty","Cab. Dimensions D = CARCASS",null,null,"Solid Top?","Face Material","Drw Front Width/Height (mm)                 If eq. put 'EQ' in height and we will work out based on specified gaps",{"$nulls":4},"Drw Box Heights (mm)",{"$nulls":3},"Drw Box Depth (mm)","GAPS (top, bottom, left, right, vertical, horizontal)",{"$nulls":4},"      Notes 1","    Notes 2"]
[{"$nulls":4},"H","W","D",null,null,"Width","H1 (Top)","H2","H3","H4","H1 (Top)","H2","H3","H4",null,"T","B","L","R","Vt/Hz"]
[1,null,"Select Cabinet","--",{"$nulls":3},{"$f":"VLOOKUP(C33, Codes!D72:E81, 2, FALSE)","v":"-"},"--"]
[2,null,"Select Cabinet","--",{"$nulls":3},"--","--"]
[3,null,"Select Cabinet","--",{"$nulls":3},"--","--"]
[4,null,"Select Cabinet","--",{"$nulls":3},"--","--"]
[5,null,"Select Cabinet","--",{"$nulls":3},"--","--"]
[6,null,"Select Cabinet","--",{"$nulls":3},"--","--"]
[7,null,"Select Cabinet","--",{"$nulls":3},"--","--"]
[8,null,"Select Cabinet","--",{"$nulls":3},"--","--"]
[9,null,"Select Cabinet","--",{"$nulls":3},"--","--"]
[10,null,"Select Cabinet","--",{"$nulls":3},"--","--"]
[11,null,"Select Cabinet","--",{"$nulls":3},"--","--"]
[12,null,"Select Cabinet","--",{"$nulls":3},"--","--"]
[13,null,"Select Cabinet","--",{"$nulls":3},"--","--"]
[14,null,"Select Cabinet","--",{"$nulls":3},"--","--"]
[15,null,"Select Cabinet","--",{"$nulls":3},"--","--"]

{"sheet":"Panels","index":2,"n_rows":54,"n_cols":14,"rows_kept":54,"merged":[[0,0,1,1],[1,5,1,12],[2,0,3,0],[2,1,3,1],[2,2,3,2],[2,3,3,3],[2,4,3,4],[2,5,3,5],[2,6,3,6],[2,8,2,12],[2,13,3,13]]}
["  Panels"]
[{"$nulls":3},"total panels:",{"$f":"SUM(E5:E54)","v":22},"** All dimensions in mm **",{"$nulls":7},"Version 2.02 01/09/2020"]
["Panel #","Room/Group                 if applicable","Material                           Specify C1, C2, C3, etc. in cover sheet","Panel","Qty","H (mm) Grain runs with H","W (mm)","Thickness (mm)","Hinge Pos. (mm)                                    (3, 4, 5 from top)",{"$nulls":4},"  Notes"]
[{"$nulls":8},"1 Top","2 Bot.",3,4,5]
[1,null,"C1","Select Panel","--",2340,465,{"$nulls":6},"be fold doors see plan"]
[2,null,"16 Carcass White","Panel - Edge 1Long",1,1500,600]
[3,null,"16 Carcass White","Panel - Edge 1Long",2,1500,100]
[4,null,"16 Carcass White","Panel - Edge 1Long",1,868,580]
[5,null,"16 Carcass White","Panel - No Edge",1,100,486]
[6,null,"16 Carcass White","Panel - Edge 1Long",1,768,80]
[7,null,"C1","Panel - Edge 1Long",1,2100,600]
[8,null,"C1","Panel - Edge 1Long",1,2000,100]
[9,null,"C1","Panel - No Edge",1,100,1390]
[10,null,"C1","Panel - Edge 1Long 2Short",3,600,352]
[11,null,"C1","Panel - Edge 1Long 2Short",1,600,100]
[12,null,"16 Carcass White","Panel - Edge 1Long 2Short",2,1270,140]
[13,null,"16 Carcass White","Panel - Edge 2Long",4,70,486]
[14,null,"C1","Panel - Edge All Round",1,1270,550]
[15,null,"C1","Panel - Edge 1Long 2Short",2,1270,158]
[16]
[17,null,"--","Select Panel","--"]
[18,null,"--","Select Panel","--"]
[19,null,"--","Select Panel","--"]
[20,null,"--","Select Panel","--"]
[21,null,"--","Select Panel","--"]
[22,null,"--","Select Panel","--"]
[23,null,"--","Select Panel","--"]
[24,null,"--","Select Panel","--"]
[25,null,"--","Select Panel","--"]
[26,null,"--","Select Panel","--"]
[27,null,"--","Select Panel","--"]
[28,null,"--","Select Panel","--"]
[29,null,"--","Select Panel","--"]
[30,null,"--","Select Panel","--"]
[31,null,"--","Select Panel","--"]
[32,null,"--","Select Panel","--"]
[33,null,"--","Select Panel","--"]
[34,null,"--","Select Panel","--"]
[35,null,"--","Select Panel","--"]
[36,null,"--","Select Panel","--"]
[37,null,"--","Select Panel","--"]
[38,null,"--","Select Panel","--"]
[39,null,"--","Select Panel","--"]
[40,null,"--","Select Panel","--"]
[41,null,"--","Select Panel","--"]
[42,null,"--","Select Panel","--"]
[43,null,"--","Select Panel","--"]
[44,null,"--","Select Panel","--"]
[45,null,"--","Select Panel","--"]
[46,null,"--","Select Panel","--"]
[47,null,"--","Select Panel","--"]
[48,null,"--","Select Panel","--"]
[49,null,"--","Select Panel","--"]
[50,null,"--","Select Panel","--"]

{"sheet":"Corner Cabs","index":3,"n_rows":0,"n_cols":0,"rows_kept":0}

{"sheet":"Rangehoods","index":4,"n_rows":41,"n_cols":17,"rows_kept":41,"merged":[[1,16,1,18]]}
[]
[{"$nulls":16},"BACK VIEW"]
[null,null,"RANGEHOOD -- CHUTE WITH ADJ/FIXED SHELVES",{"$nulls":5},"INFORMATION REQUIRED"]
[]
[{"$nulls":8},"Chute width & depth"]
[{"$nulls":8},"Height of bottom section"]
[{"$nulls":8},"Bottom hinge position (from bottom of door)"]
[{"$nulls":8},"Door height/Reveal at bottom for slideout"]
{"$rows_empty":9}
[null,null,"RANGEHOOD -- CONCEALED WITH ADJ/FIXED SHELVES"]
[]
[{"$nulls":9},"Chute or raised back"]
[{"$nulls":9},"if chute, width & depth"]
[{"$nulls":9},"Height of bottom sectoin"]
[{"$nulls":9},"Base?"]
[{"$nulls":9},"If base, cutout size"]
[{"$nulls":9},"Bottom hige position (from bottom of door)"]
{"$rows_empty":9}
[null,null,"RANGEHOOD VOID WITH ADJ/FIXED SHELVES"]
[]
[{"$nulls":8},"Height of bottom section"]
[{"$nulls":8},"Bottom hige position (from bottom of door)"]
[{"$nulls":8},"Door height"]
[{"$nulls":8},"Depth of back void"]
[{"$nulls":8},"Height of bottom void"]

{"sheet":"TC standards AND Required info","index":5,"n_rows":63,"n_cols":2,"rows_kept":63}
["Base, Tall, Wall"]
["Base 2 Door"]
["Base 1 Door LH"]
["Base 1 Door RH"]
["Base 2 Door Sink","Vertical rail"]
["Base 1 Door LH Sink","Vertical rail"]
["Base 1 Door RH Sink","Vertical rail"]
["UBO","600H between equal fillers. 1 fix-shelf 25up. Cutout in base & fix"]
["Base Open","Carcass out of face material"]
["Base 2 Door Cnr90 LH","16mm void -- attach plan view"]
["Base 2 Door Cnr90 RH","16mm void -- attach plan view"]
["Base Blind (1 Door on Left) - Blind hinges","Provide door/fixed panel size"]
["Base Blind (1 Door on Right) - Blind hinges","Provide door/fixed panel size"]
["Base Blind (1 Door on Left) - Std hinges - Mullion","Provide door/fixed panel size"]
["Base Blind (1 Door on Right) - Std hinges - Mullion","Provide door/fixed panel size"]
["Upper 2 Door"]
["Upper 1 Door LH"]
["Upper 1 Door RH"]
["Upper 1 Door Top Hinge","100/100 in from L/R"]
["Upper Open","Carcass out of face material"]
["Upper 2 Door Cnr90 LH","16mm void -- attach plan view"]
["Upper 2 Door Cnr90 RH","16mm void -- attach plan view"]
["Rhood Void Fix Shelves","Attach drawing/specs"]
["Rhood Void Adj shelves","Attach drawing/specs"]
["Rhood Chute Fix Shelves","Attach drawing/specs"]
["Rhood Chute Adj Shelves","Attach drawing/specs"]
["Appliance Cabinet (bifold)","Provide hardware spec"]
["Tall 2 Door","All adjustable"]
["Tall 1 Door LH","All adjustable. Provide drawing, plan view"]
["Tall 1 Door RH","All adjustable. Provide drawing, plan view"]
["Pantry 1 Door Cnr45 LH","All adjustable. Provide drawing, plan view"]
["Pantry 1 Door Cnr45 RH","All adjustable. Provide drawing, plan view"]
["Pantry 1 Door Cnr45 Walkin LH","All adjustable. Provide drawing, plan view"]
["Pantry 1 Door Cnr45 Walkin RH","All adjustable. Provide drawing, plan view"]
["Pantry 2 Door Cnr90 LH","All adjustable. Provide drawing, plan view"]
["Pantry 2 Door Cnr90 RH","All adjustable. Provide drawing, plan view"]
["Pantry 2 Door Cnr90 Walkin LH","All adjustable. Provide drawing, plan view"]
["Pantry 2 Door Cnr90 Walkin RH","All adjustable. Provide drawing, plan view"]
["Tall Blind (Door on Left) - Blind hinges","All adjustable. Provide door/fix panel size"]
["Tall Blind (Door on Right) - Blind hinges","All adjustable. Provide door/fix panel size"]
["Tall Blind (Door on Left) w. Mullion - Std hinges","All adjustable. Provide door/fix panel size"]
["Tall Blind (Door on Right) w. Mullion - Std hinges","All adjustable. Provide door/fix panel size"]
["Fpull - Base 2 Door","Vertical rail. Provide gaps/cutout info"]
["Fpull - Base 1 Door LH","Vertical rail. Provide gaps/cutout info"]
["Fpull - Base 1 Door RH","Vertical rail. Provide gaps/cutout info"]
["Fpull - Base 2 Door Sink","Vertical rail. Provide gaps/cutout info"]
["Fpull - Base 1 Door LH Sink","Vertical rail. Provide gaps/cutout info"]
["Fpull - Base 1 Door RH Sink","Vertical rail. Provide gaps/cutout info"]
["F-pull - Base 2 Door Cnr90 LH","16mm void -- attach plan view"]
["Fpull - Base 2 Door Cnr90 RH","16mm void -- attach plan view"]
["Fpull - Base Blind (1 Door on Left) - Blind hinges","Provide door/fixed panel size"]
["Fpull - Base Blind (1 Door on Right) - Blind hinges","Provide door/fixed panel size"]
["Fpull - Base Blind (1 Door on Left) - Std hinges - Mullion","Provide door/fixed panel size"]
["Fpull - Base Blind (1 Door on Right) - Std hinges - Mullion","Provide door/fixed panel size"]
["Drawers"]
["Base 1 Drawer"]
["Base 2 Drawer"]
["Base 3 Drawer"]
["Base 4 Drawer"]
["Fpull - Base 1 Drawer","Vertical rails. Provide gaps/cutout info"]
["Fpull - Base 2 Drawer","Vertical rails. Provide gaps/cutout info"]
["Fpull - Base 3 Drawer","Vertical rails. Provide gaps/cutout info"]
["Fpull - Base 4 Drawer","Vertical rails. Provide gaps/cutout info"]

{"sheet":"Codes","index":6,"n_rows":81,"n_cols":6,"rows_kept":81,"hidden":true}
[]
[]
[null,"Panels & Doors",null,"Base, Tall, Wall","Solid top","TC Standards"]
[null,"Select Panel",null,"Select Cabinet","-"]
[null,"Panel - No Edge",null,"Base 2 Door","N"]
[null,"Panel - Edge All Round",null,"Base 1 Door LH","N","--"]
[null,"Panel - Edge 1Long",null,"Base 1 Door RH","N","--"]
[null,"Panel - Edge 1Short",null,"Base 2 Door Sink","N - Vert. Front","Vertical front rail"]
[null,"Panel - Edge 2Long",null,"Base 1 Door LH Sink","N - Vert. Front","Vertical front rail"]
[null,"Panel - Edge 2Short",null,"Base 1 Door RH Sink","N - Vert. Front","Vertical front rail"]
[null,"Panel - Edge 1Long 1Short",null,"UBO","N","600H between equal fillers. 1 fix-shelf 25up. Cutout in base & fix"]
[null,"Panel - Edge 1Long 2Short",null,"Base Open","Y","Carcass out of face material"]
[null,"Panel - L-Shape Filler",null,"Base 2 Door Cnr90 LH","N","16mm void -- attach plan view"]
[null,"Door only LH",null,"Base 2 Door Cnr90 RH","N","16mm void -- attach plan view"]
[null,"Door only RH",null,"Base Blind (1 Door on Left) - Blind hinges","N","Provide door/fixed panel size"]
[null,"Door Pair LR",null,"Base Blind (1 Door on Right) - Blind hinges","N","Provide door/fixed panel size"]
[null,"Door Pair Cnr90 LH",null,"Base Blind (1 Door on Left) - Std hinges - Mullion","N","Provide door/fixed panel size"]
[null,"Door Pair Cnr90 RH",null,"Base Blind (1 Door on Right) - Std hinges - Mullion","N","Provide door/fixed panel size"]
[null,"Drawer Front",null,"Upper 2 Door","Y","--"]
[{"$nulls":3},"Upper 1 Door LH","Y","--"]
[{"$nulls":3},"Upper 1 Door RH","Y","--"]
[{"$nulls":3},"Upper 1 Door Top Hinge","Y","100/100 in from L/R"]
[{"$nulls":3},"Upper Open","Y","Carcass out of face material"]
[null,"--",null,"Upper 2 Door Cnr90 LH","Y","16mm void -- attach plan view"]
[null,"y",null,"Upper 2 Door Cnr90 RH","Y","16mm void -- attach plan view"]
[null,"n",null,"Rhood Void Fix Shelves","Y","Attach drawing/specs"]
[{"$nulls":3},"Rhood Void Adj shelves","Y","Attach drawing/specs"]
[null,"--",null,"Rhood Chute Fix Shelves","Y","Attach drawing/specs"]
[null,"Carcass Only",null,"Rhood Chute Adj Shelves","Y","Attach drawing/specs"]
[null,"C1",null,"Appliance Cabinet (bifold)","Y","Provide hardware spec"]
[null,"C2",null,"Tall 2 Door","Y","All adjustable"]
[null,"C3",null,"Tall 1 Door LH","Y","All adjustable. Provide drawing, plan view"]
[null,"C4",null,"Tall 1 Door RH","Y","All adjustable. Provide drawing, plan view"]
[null,"C5",null,"Pantry 1 Door Cnr45 LH","Y","All adjustable. Provide drawing, plan view"]
[{"$nulls":3},"Pantry 1 Door Cnr45 RH","Y","All adjustable. Provide drawing, plan view"]
[null,"--",null,"Pantry 1 Door Cnr45 Walkin LH","Y","All adjustable. Provide drawing, plan view"]
[null,"C1",null,"Pantry 1 Door Cnr45 Walkin RH","Y","All adjustable. Provide drawing, plan view"]
[null,"C2",null,"Pantry 2 Door Cnr90 LH","Y","All adjustable. Provide drawing, plan view"]
[null,"C3",null,"Pantry 2 Door Cnr90 RH","Y","All adjustable. Provide drawing, plan view"]
[null,"C4",null,"Pantry 2 Door Cnr90 Walkin LH","Y","All adjustable. Provide drawing, plan view"]
[null,"C5",null,"Pantry 2 Door Cnr90 Walkin RH","Y","All adjustable. Provide drawing, plan view"]
[null,"16 Carcass White",null,"Tall Blind (Door on Left) - Blind hinges","Y","All adjustable. Provide door/fix panel size"]
[null,"18 Raw (subs)",null,"Tall Blind (Door on Right) - Blind hinges","Y","All adjustable. Provide door/fix panel size"]
[null,"3 Raw (temps)",null,"Tall Blind (Door on Left) w. Mullion - Std hinges","Y","All adjustable. Provide door/fix panel size"]
[{"$nulls":3},"Tall Blind (Door on Right) w. Mullion - Std hinges","Y","All adjustable. Provide door/fix panel size"]
[{"$nulls":3},"Tall 3 Drw + Open Top (inset w. finger gap)","Y","3 inset drawers in bottom section. Sid mount BB runners"]
[{"$nulls":3},"Tall 4 Drw + Open Top (inset w. finger gap)","Y","4 inset drawers in bottom section. Side mount BB runners"]
[null,"Qty",null,"Fpull - Base 2 Door","N - Vert. Front","Vertical front rail. Provide gaps/cutout info"]
[null,"--",null,"Fpull - Base 1 Door LH","N - Vert. Front","Vertical front rail. Provide gaps/cutout info"]
[null,1,null,"Fpull - Base 1 Door RH","N - Vert. Front","Vertical front rail. Provide gaps/cutout info"]
[null,2,null,"Fpull - Base 2 Door Sink","N - Vert. Front","Vertical front rail. Provide gaps/cutout info"]
[null,3,null,"Fpull - Base 1 Door LH Sink","N - Vert. Front","Vertical front rail. Provide gaps/cutout info"]
[null,4,null,"Fpull - Base 1 Door RH Sink","N - Vert. Front","Vertical front rail. Provide gaps/cutout info"]
[null,5,null,"Fpull - Base 2 Door Cnr90 LH","N - Vert. Front","16mm void -- attach plan view"]
[null,6,null,"Fpull - Base 2 Door Cnr90 RH","N - Vert. Front","16mm void -- attach plan view"]
[null,7,null,"Fpull - Base Blind (1 Door on Left) - Blind hinges","N - Vert. Front","Provide door/fixed panel size"]
[null,8,null,"Fpull - Base Blind (1 Door on Right) - Blind hinges","N - Vert. Front","Provide door/fixed panel size"]
[null,9,null,"Fpull - Base Blind (1 Door on Left) - Std hinges - Mullion","N - Vert. Front","Provide door/fixed panel size"]
[null,10,null,"Fpull - Base Blind (1 Door on Right) - Std hinges - Mullion","N - Vert. Front","Provide door/fixed panel size"]
[null,11]
[null,12]
[null,13]
[null,14]
[null,15]
[null,16]
[null,17]
[null,18]
[null,19]
[null,20]
[]
[]
[{"$nulls":3},"Drawers"]
[null,"Pallet",null,"Select Cabinet","-"]
[null,"   Select Pallet Size",null,"Base 1 Drawer","N"]
[null,"   2400 x 1200",null,"Base 2 Drawer","N"]
[null,"   1800 x 1200",null,"Base 3 Drawer","N"]
[null,"   900 x 1200",null,"Base 4 Drawer","N"]
[{"$nulls":3},"Fpull - Base 1 Drawer","N - Vert. Front","Vertical rails. Provide gaps/cutout info"]
[{"$nulls":3},"Fpull - Base 2 Drawer","N - Vert. Front","Vertical rails. Provide gaps/cutout info"]
[{"$nulls":3},"Fpull - Base 3 Drawer","N - Vert. Front","Vertical rails. Provide gaps/cutout info"]
[{"$nulls":3},"Fpull - Base 4 Drawer","N - Vert. Front","Vertical rails. Provide gaps/cutout info"]

{"sheet":"Versions","index":7,"n_rows":6,"n_cols":4,"rows_kept":6}
["Version","Cabinets","Panels","Other"]
[1.01,"New column: Solid top option for base cabinets","New column: Material thickness e.g. 16, 18","Codes updates to make our program run better behind the scenes."]
[1.02,"Added Appliance Cabinet (bifold), top hinged overhead","Grain Direction note added for H"]
[2,"Restructured columns, separated drawers out. Autopopulate cells based on cab selected. Added TC standards and required info, added Job Info tab"]
[2.01,"Added Wardobe towers, added text entry for corner cabs, fixed drawer dropdown"]
[2.02,"Added door gaps, added rangehood tab"]